[Event "Titled Tuesday Blitz June 20 Early 2023"]
[White "Seemann, Jakub"]
[Black "Nikolova, Adriana"]
[WhiteFideId "21874697"]
[BlackFideId "2908689"]
[WhiteElo "2364"]
[BlackElo "2213"]
[Result "1/2-1/2"]
[Round "3"]
[TimeControl "180+2"]
[Date "2023.06.20"]
[WhiteClock "0:00:22"]
[BlackClock "0:00:12"]
[Board "103"]

1. c4 {[%clk 0:03:00]}  e5 {[%clk 0:02:59]} 2. Nc3 {[%clk 0:03:00]}  Nf6 {[%clk 0:02:59]} 3. e3 {[%clk 0:03:00]}  d5 {[%clk 0:02:58]} 4. cxd5 {[%clk 0:02:59]}  Nxd5 {[%clk 0:02:59]} 5. Nf3 {[%clk 0:02:59]}  Nc6 {[%clk 0:02:59]} 6. Bb5 {[%clk 0:02:52]}  Nxc3 {[%clk 0:02:59]} 7. bxc3 {[%clk 0:02:52]}  Bd6 {[%clk 0:02:58]} 8. d4 {[%clk 0:02:52]}  e4 {[%clk 0:02:58]} 9. Nd2 {[%clk 0:02:51]}  Qg5 {[%clk 0:02:58]} 10. g3 {[%clk 0:02:49]}  Qxb5 {[%clk 0:02:57]} 11. Nxe4 {[%clk 0:02:42]}  O-O {[%clk 0:02:48]} 12. Qb3 {[%clk 0:02:26]}  Qd3 {[%clk 0:02:42]} 13. Nd2 {[%clk 0:02:24]}  Bg4 {[%clk 0:02:37]} 14. Qc4 {[%clk 0:02:25]}  Qc2 {[%clk 0:02:30]} 15. O-O {[%clk 0:02:20]}  Be6 {[%clk 0:02:24]} 16. d5 {[%clk 0:02:13]}  Ne5 {[%clk 0:02:25]} 17. Qb5 {[%clk 0:02:00]}  a6 {[%clk 0:02:08]} 18. Qe2 {[%clk 0:01:44]}  Bxd5 {[%clk 0:01:52]} 19. Qh5 {[%clk 0:01:43]}  g6 {[%clk 0:01:41]} 20. Qh6 {[%clk 0:01:39]}  Nf3+ {[%clk 0:01:30]} 21. Nxf3 {[%clk 0:01:38]}  Bxf3 {[%clk 0:01:31]} 22. c4 {[%clk 0:01:37]}  Be2 {[%clk 0:01:21]} 23. Re1 {[%clk 0:01:27]}  Be5 {[%clk 0:01:21]} 24. Ba3 {[%clk 0:01:25]}  Bg7 {[%clk 0:01:11]} 25. Qf4 {[%clk 0:01:23]}  Bxa1 {[%clk 0:01:09]} 26. Bxf8 {[%clk 0:01:18]}  Rxf8 {[%clk 0:01:08]} 27. Rxa1 {[%clk 0:01:18]}  Qxc4 {[%clk 0:01:05]} 28. Qf6 {[%clk 0:01:18]}  Qe4 {[%clk 0:01:00]} 29. h4 {[%clk 0:01:17]}  Bb5 {[%clk 0:00:59]} 30. Kh2 {[%clk 0:01:11]}  Bc6 {[%clk 0:00:59]} 31. Rg1 {[%clk 0:01:11]}  Re8 {[%clk 0:00:56]} 32. h5 {[%clk 0:01:10]}  Qf3 {[%clk 0:00:53]} 33. Qxf3 {[%clk 0:01:07]}  Bxf3 {[%clk 0:00:54]} 34. h6 {[%clk 0:01:08]}  Re5 {[%clk 0:00:52]} 35. g4 {[%clk 0:01:08]}  Rg5 {[%clk 0:00:41]} 36. Rc1 {[%clk 0:01:08]}  c5 {[%clk 0:00:32]} 37. Kg3 {[%clk 0:01:08]}  Bxg4 {[%clk 0:00:27]} 38. f4 {[%clk 0:00:58]}  Rh5 {[%clk 0:00:27]} 39. Kxg4 {[%clk 0:00:59]}  Rxh6 {[%clk 0:00:24]} 40. Rxc5 {[%clk 0:00:59]}  Rh2 {[%clk 0:00:24]} 41. a4 {[%clk 0:00:57]}  Ra2 {[%clk 0:00:23]} 42. a5 {[%clk 0:00:57]}  Kg7 {[%clk 0:00:23]} 43. e4 {[%clk 0:00:56]}  Ra4 {[%clk 0:00:23]} 44. e5 {[%clk 0:00:55]}  h6 {[%clk 0:00:23]} 45. Kf3 {[%clk 0:00:52]}  h5 {[%clk 0:00:22]} 46. Rc7 {[%clk 0:00:48]}  Kg8 {[%clk 0:00:20]} 47. Rc5 {[%clk 0:00:45]}  Kf8 {[%clk 0:00:16]} 48. Rc8+ {[%clk 0:00:43]}  Ke7 {[%clk 0:00:14]} 49. Rc7+ {[%clk 0:00:32]}  Ke6 {[%clk 0:00:15]} 50. Rxb7 {[%clk 0:00:32]}  Ra3+ {[%clk 0:00:15]} 51. Ke4 {[%clk 0:00:31]}  Ra4+ {[%clk 0:00:14]} 52. Kf3 {[%clk 0:00:31]}  Rxa5 {[%clk 0:00:15]} 53. Rb6+ {[%clk 0:00:30]}  Ke7 {[%clk 0:00:15]} 54. Rb7+ {[%clk 0:00:30]}  Kf8 {[%clk 0:00:16]} 55. Rb8+ {[%clk 0:00:23]}  Kg7 {[%clk 0:00:16]} 56. Rb7 {[%clk 0:00:24]}  Ra3+ {[%clk 0:00:11]} 57. Ke4 {[%clk 0:00:23]}  Kg8 {[%clk 0:00:11]} 58. Rb8+ {[%clk 0:00:23]}  Kg7 {[%clk 0:00:11]} 59. Rb7 {[%clk 0:00:24]}  Ra4+ {[%clk 0:00:11]} 60. Kf3 {[%clk 0:00:22]}  Ra3+ {[%clk 0:00:12]} 61. Ke4 {[%clk 0:00:22]} 1/2-1/2


[Site "https://www.chess.com"]

[Event "Titled Tuesday Blitz June 20 Early 2023"]
[White "Domingo Nunez, Alejandro"]
[Black "DanyKopy"]
[WhiteFideId "22245561"]
[WhiteElo "2291"]
[BlackElo "2474"]
[Result "1-0"]
[Round "3"]
[TimeControl "180+2"]
[Date "2023.06.20"]
[WhiteClock "0:00:39"]
[BlackClock "0:00:09"]
[Board "104"]

1. Nf3 {[%clk 0:02:51]}  d5 {[%clk 0:02:56]} 2. g3 {[%clk 0:02:51]}  c6 {[%clk 0:02:55]} 3. Bg2 {[%clk 0:02:51]}  Bg4 {[%clk 0:02:55]} 4. O-O {[%clk 0:02:52]}  Nd7 {[%clk 0:02:55]} 5. h3 {[%clk 0:02:51]}  Bxf3 {[%clk 0:02:52]} 6. Bxf3 {[%clk 0:02:51]}  Ngf6 {[%clk 0:02:52]} 7. Bg2 {[%clk 0:02:52]}  e6 {[%clk 0:02:51]} 8. d3 {[%clk 0:02:52]}  Bd6 {[%clk 0:02:51]} 9. e4 {[%clk 0:02:49]}  O-O {[%clk 0:02:49]} 10. Qe2 {[%clk 0:02:37]}  e5 {[%clk 0:02:45]} 11. f4 {[%clk 0:02:36]}  Re8 {[%clk 0:02:42]} 12. f5 {[%clk 0:02:35]}  h6 {[%clk 0:02:30]} 13. Nc3 {[%clk 0:02:33]}  d4 {[%clk 0:02:13]} 14. Nd1 {[%clk 0:02:33]}  c5 {[%clk 0:02:13]} 15. Nf2 {[%clk 0:02:26]}  b5 {[%clk 0:02:11]} 16. h4 {[%clk 0:02:19]}  Nh7 {[%clk 0:02:01]} 17. Qh5 {[%clk 0:02:14]}  Rc8 {[%clk 0:01:54]} 18. a4 {[%clk 0:02:08]}  a6 {[%clk 0:01:50]} 19. axb5 {[%clk 0:02:09]}  axb5 {[%clk 0:01:51]} 20. Ra6 {[%clk 0:02:09]}  Bf8 {[%clk 0:01:38]} 21. Ng4 {[%clk 0:01:43]}  Nhf6 {[%clk 0:01:23]} 22. Nxf6+ {[%clk 0:01:41]}  Nxf6 {[%clk 0:01:24]} 23. Qf3 {[%clk 0:01:41]}  Nd7 {[%clk 0:01:08]} 24. Qf2 {[%clk 0:01:26]}  Be7 {[%clk 0:00:59]} 25. Bh3 {[%clk 0:01:17]}  Ra8 {[%clk 0:00:56]} 26. Rxa8 {[%clk 0:01:13]}  Qxa8 {[%clk 0:00:57]} 27. g4 {[%clk 0:01:13]}  Qd8 {[%clk 0:00:56]} 28. f6 {[%clk 0:00:53]}  gxf6 {[%clk 0:00:24]} 29. Bxh6 {[%clk 0:00:52]}  Bf8 {[%clk 0:00:23]} 30. Bd2 {[%clk 0:00:53]}  c4 {[%clk 0:00:19]} 31. g5 {[%clk 0:00:52]}  fxg5 {[%clk 0:00:13]} 32. Qxf7+ {[%clk 0:00:52]}  Kh8 {[%clk 0:00:14]} 33. Bxg5 {[%clk 0:00:45]}  Re7 {[%clk 0:00:09]} 34. Bxe7 {[%clk 0:00:39]} 1-0


[Site "https://www.chess.com"]

[Event "Titled Tuesday Blitz June 20 Early 2023"]
[White "Martic, Ivan"]
[Black "Toncheva, Nadya"]
[WhiteFideId "929301"]
[BlackFideId "2924056"]
[WhiteElo "2346"]
[BlackElo "2101"]
[Result "1/2-1/2"]
[Round "3"]
[TimeControl "180+2"]
[Date "2023.06.20"]
[WhiteClock "0:00:11"]
[BlackClock "0:00:07"]
[Board "105"]

1. d4 {[%clk 0:03:00]}  d5 {[%clk 0:02:59]} 2. Nf3 {[%clk 0:02:59]}  Nf6 {[%clk 0:03:00]} 3. Bf4 {[%clk 0:02:59]}  c5 {[%clk 0:02:59]} 4. e3 {[%clk 0:02:59]}  Nc6 {[%clk 0:03:00]} 5. Nbd2 {[%clk 0:02:58]}  Qb6 {[%clk 0:03:00]} 6. dxc5 {[%clk 0:02:57]}  Qxb2 {[%clk 0:03:01]} 7. c4 {[%clk 0:02:54]}  dxc4 {[%clk 0:02:48]} 8. Bxc4 {[%clk 0:02:55]}  e6 {[%clk 0:02:42]} 9. O-O {[%clk 0:02:50]}  Bxc5 {[%clk 0:02:36]} 10. e4 {[%clk 0:02:45]}  O-O {[%clk 0:02:27]} 11. e5 {[%clk 0:02:43]}  Nd5 {[%clk 0:02:22]} 12. Bg5 {[%clk 0:02:35]}  Nxe5 {[%clk 0:02:09]} 13. Rb1 {[%clk 0:02:32]}  Nxf3+ {[%clk 0:02:09]} 14. Nxf3 {[%clk 0:02:33]}  Qa3 {[%clk 0:01:55]} 15. Rb3 {[%clk 0:02:31]}  Qa4 {[%clk 0:01:44]} 16. Bxd5 {[%clk 0:02:29]}  exd5 {[%clk 0:01:44]} 17. Qxd5 {[%clk 0:02:16]}  Be6 {[%clk 0:01:37]} 18. Qxc5 {[%clk 0:02:15]}  Bxb3 {[%clk 0:01:37]} 19. axb3 {[%clk 0:02:15]}  Qxb3 {[%clk 0:01:38]} 20. h4 {[%clk 0:02:11]}  a5 {[%clk 0:01:37]} 21. Be7 {[%clk 0:02:09]}  Rfe8 {[%clk 0:01:35]} 22. Nd4 {[%clk 0:02:06]}  Qd3 {[%clk 0:01:28]} 23. Nf5 {[%clk 0:01:55]}  Rac8 {[%clk 0:00:53]} 24. Qxa5 {[%clk 0:01:47]}  Qc3 {[%clk 0:00:41]} 25. Qd5 {[%clk 0:01:38]}  Qc6 {[%clk 0:00:36]} 26. Qe5 {[%clk 0:01:29]}  Qc3 {[%clk 0:00:36]} 27. Qf4 {[%clk 0:01:22]}  Rc4 {[%clk 0:00:31]} 28. Qg5 {[%clk 0:01:20]}  Rc6 {[%clk 0:00:14]} 29. h5 {[%clk 0:01:05]}  h6 {[%clk 0:00:13]} 30. Qg4 {[%clk 0:01:01]}  Qe5 {[%clk 0:00:12]} 31. Rd1 {[%clk 0:00:48]}  Rxe7 {[%clk 0:00:11]} 32. Nxe7+ {[%clk 0:00:29]}  Qxe7 {[%clk 0:00:11]} 33. Rd7 {[%clk 0:00:25]}  Rc1+ {[%clk 0:00:10]} 34. Kh2 {[%clk 0:00:25]}  Qe5+ {[%clk 0:00:10]} 35. g3 {[%clk 0:00:25]}  Qf6 {[%clk 0:00:09]} 36. Qe2 {[%clk 0:00:13]}  Rc8 {[%clk 0:00:09]} 37. Rxb7 {[%clk 0:00:12]}  Kh7 {[%clk 0:00:08]} 38. Re7 {[%clk 0:00:10]}  Qf5 {[%clk 0:00:06]} 39. Kg2 {[%clk 0:00:09]}  Qd5+ {[%clk 0:00:06]} 40. Kh2 {[%clk 0:00:10]}  Rc5 {[%clk 0:00:06]} 41. Qe4+ {[%clk 0:00:06]}  Qxe4 {[%clk 0:00:06]} 42. Rxe4 {[%clk 0:00:07]}  Rxh5+ {[%clk 0:00:06]} 43. Kg2 {[%clk 0:00:08]}  Ra5 {[%clk 0:00:07]} 44. Rc4 {[%clk 0:00:08]}  Kg6 {[%clk 0:00:07]} 45. Rb4 {[%clk 0:00:08]}  f6 {[%clk 0:00:08]} 46. Rc4 {[%clk 0:00:09]}  Rb5 {[%clk 0:00:08]} 47. Rd4 {[%clk 0:00:09]}  h5 {[%clk 0:00:08]} 48. Rc4 {[%clk 0:00:09]}  Rb7 {[%clk 0:00:08]} 49. Rd4 {[%clk 0:00:10]}  Rb2 {[%clk 0:00:08]} 50. Rc4 {[%clk 0:00:10]}  Kf5 {[%clk 0:00:08]} 51. Rd4 {[%clk 0:00:10]}  g5 {[%clk 0:00:08]} 52. Rd5+ {[%clk 0:00:10]}  Kg6 {[%clk 0:00:08]} 53. Rd4 {[%clk 0:00:10]}  Ra2 {[%clk 0:00:07]} 54. Rc4 {[%clk 0:00:10]}  Kf5 {[%clk 0:00:07]} 55. Rc5+ {[%clk 0:00:11]}  Kg6 {[%clk 0:00:07]} 56. Rc4 {[%clk 0:00:11]}  Rd2 {[%clk 0:00:07]} 57. Rb4 {[%clk 0:00:11]}  Ra2 {[%clk 0:00:07]} 58. Rc4 {[%clk 0:00:11]} 1/2-1/2


[Site "https://www.chess.com"]

[Event "Titled Tuesday Blitz June 20 Early 2023"]
[White "Jakubowski, Krzysztof"]
[Black "Zaitsev, Alexander"]
[WhiteFideId "1112848"]
[BlackFideId "4164490"]
[WhiteElo "2359"]
[BlackElo "2373"]
[Result "0-1"]
[Round "3"]
[TimeControl "180+2"]
[Date "2023.06.20"]
[WhiteClock "0:00:07"]
[BlackClock "0:00:44"]
[Board "106"]

1. c4 {[%clk 0:02:53]}  Nf6 {[%clk 0:02:59]} 2. g3 {[%clk 0:02:52]}  e6 {[%clk 0:02:59]} 3. Bg2 {[%clk 0:02:51]}  d5 {[%clk 0:02:59]} 4. Nf3 {[%clk 0:02:51]}  dxc4 {[%clk 0:03:00]} 5. O-O {[%clk 0:02:51]}  Nbd7 {[%clk 0:02:59]} 6. Qc2 {[%clk 0:02:50]}  Nb6 {[%clk 0:02:59]} 7. a4 {[%clk 0:02:50]}  a5 {[%clk 0:02:59]} 8. Rd1 {[%clk 0:02:50]}  Bd6 {[%clk 0:02:43]} 9. Na3 {[%clk 0:02:47]}  O-O {[%clk 0:02:42]} 10. Nxc4 {[%clk 0:02:46]}  Nxc4 {[%clk 0:02:43]} 11. Qxc4 {[%clk 0:02:46]}  e5 {[%clk 0:02:43]} 12. d3 {[%clk 0:02:43]}  c6 {[%clk 0:02:39]} 13. Bd2 {[%clk 0:02:36]}  Be6 {[%clk 0:02:35]} 14. Qc2 {[%clk 0:02:36]}  Qb6 {[%clk 0:02:35]} 15. Be3 {[%clk 0:02:33]}  Qb3 {[%clk 0:02:30]} 16. Qc1 {[%clk 0:02:31]}  Nd5 {[%clk 0:02:18]} 17. Nd2 {[%clk 0:02:25]}  Qb4 {[%clk 0:02:18]} 18. Ne4 {[%clk 0:02:12]}  Nxe3 {[%clk 0:02:14]} 19. Qxe3 {[%clk 0:02:12]}  Be7 {[%clk 0:02:10]} 20. Qd2 {[%clk 0:01:56]}  Qb6 {[%clk 0:01:59]} 21. Qc3 {[%clk 0:01:53]}  f6 {[%clk 0:01:56]} 22. Rdc1 {[%clk 0:01:49]}  Bb4 {[%clk 0:01:55]} 23. Qc2 {[%clk 0:01:49]}  Rfd8 {[%clk 0:01:48]} 24. h4 {[%clk 0:01:41]}  Rac8 {[%clk 0:01:37]} 25. Nc5 {[%clk 0:01:26]}  Bf7 {[%clk 0:01:37]} 26. Ne4 {[%clk 0:01:19]}  h6 {[%clk 0:01:36]} 27. Nd2 {[%clk 0:01:17]}  Kh8 {[%clk 0:01:26]} 28. Bh3 {[%clk 0:01:17]}  Rc7 {[%clk 0:01:23]} 29. Nc4 {[%clk 0:01:17]}  Qc5 {[%clk 0:01:21]} 30. Qd1 {[%clk 0:01:14]}  e4 {[%clk 0:01:15]} 31. Ne3 {[%clk 0:01:11]}  Qe5 {[%clk 0:01:10]} 32. Qc2 {[%clk 0:01:05]}  exd3 {[%clk 0:01:08]} 33. exd3 {[%clk 0:01:06]}  Bg6 {[%clk 0:01:07]} 34. Rd1 {[%clk 0:01:04]}  Bc5 {[%clk 0:01:06]} 35. Nc4 {[%clk 0:00:49]}  Qxg3+ {[%clk 0:01:05]} 36. Bg2 {[%clk 0:00:47]}  Rxd3 {[%clk 0:00:53]} 37. Rf1 {[%clk 0:00:07]}  Be4 {[%clk 0:00:44]} 0-1


[Site "https://www.chess.com"]

[Event "Titled Tuesday Blitz June 20 Early 2023"]
[White "Kjartansson, David"]
[Black "Tanmay Jain"]
[WhiteFideId "2301130"]
[BlackFideId "45015481"]
[WhiteElo "2333"]
[BlackElo "2032"]
[Result "1-0"]
[Round "3"]
[TimeControl "180+2"]
[Date "2023.06.20"]
[WhiteClock "0:00:51"]
[BlackClock "0:00:00"]
[Board "107"]

1. d4 {[%clk 0:02:52]}  Nf6 {[%clk 0:02:59]} 2. Nc3 {[%clk 0:02:51]}  d5 {[%clk 0:02:59]} 3. Bf4 {[%clk 0:02:51]}  e6 {[%clk 0:03:00]} 4. Nb5 {[%clk 0:02:49]}  Na6 {[%clk 0:02:59]} 5. e3 {[%clk 0:02:50]}  c6 {[%clk 0:02:58]} 6. Nc3 {[%clk 0:02:50]}  Nc7 {[%clk 0:02:58]} 7. Bd3 {[%clk 0:02:49]}  Bd6 {[%clk 0:02:58]} 8. Nf3 {[%clk 0:02:48]}  O-O {[%clk 0:02:56]} 9. O-O {[%clk 0:02:47]}  Nfe8 {[%clk 0:02:55]} 10. Bxd6 {[%clk 0:02:43]}  Qxd6 {[%clk 0:02:53]} 11. e4 {[%clk 0:02:43]}  dxe4 {[%clk 0:02:49]} 12. Nxe4 {[%clk 0:02:42]}  Qe7 {[%clk 0:02:50]} 13. c4 {[%clk 0:02:41]}  h6 {[%clk 0:02:47]} 14. Re1 {[%clk 0:02:40]}  Nf6 {[%clk 0:02:46]} 15. Ng3 {[%clk 0:02:38]}  b6 {[%clk 0:02:39]} 16. Qc2 {[%clk 0:02:30]}  Bb7 {[%clk 0:02:37]} 17. c5 {[%clk 0:02:29]}  Ncd5 {[%clk 0:02:28]} 18. Nf5 {[%clk 0:02:23]}  Qc7 {[%clk 0:02:21]} 19. Nd6 {[%clk 0:02:23]}  Nb4 {[%clk 0:02:00]} 20. Qd2 {[%clk 0:02:18]}  Nxd3 {[%clk 0:02:00]} 21. Qxd3 {[%clk 0:02:19]}  Rad8 {[%clk 0:01:49]} 22. b4 {[%clk 0:02:15]}  a5 {[%clk 0:01:38]} 23. a3 {[%clk 0:02:14]}  Nd5 {[%clk 0:01:32]} 24. Rab1 {[%clk 0:02:12]}  axb4 {[%clk 0:01:32]} 25. axb4 {[%clk 0:02:11]}  b5 {[%clk 0:01:30]} 26. Ne5 {[%clk 0:02:08]}  Ra8 {[%clk 0:01:18]} 27. Rb3 {[%clk 0:02:04]}  Ra4 {[%clk 0:01:14]} 28. Qd2 {[%clk 0:02:03]}  Ne7 {[%clk 0:00:56]} 29. h4 {[%clk 0:01:50]}  Ra7 {[%clk 0:00:47]} 30. Rg3 {[%clk 0:01:48]}  Nf5 {[%clk 0:00:26]} 31. Nxf5 {[%clk 0:01:45]}  exf5 {[%clk 0:00:27]} 32. Qxh6 {[%clk 0:01:45]}  f6 {[%clk 0:00:27]} 33. h5 {[%clk 0:00:58]}  fxe5 {[%clk 0:00:27]} 34. Rxe5 {[%clk 0:00:58]}  Raa8 {[%clk 0:00:20]} 35. Qe6+ {[%clk 0:00:51]}  Qf7 {[%clk 0:00:20]} 36. h6 {[%clk 0:00:51]}  Qxe6 {[%clk 0:00:14]} 37. Rxg7+ {[%clk 0:00:51]}  Kh8 {[%clk 0:00:14]} 38. Rxe6 {[%clk 0:00:51]}  Bc8 {[%clk 0:00:00]} 39. Ree7 {[%clk 0:00:51]} 1-0


[Site "https://www.chess.com"]

[Event "Titled Tuesday Blitz June 20 Early 2023"]
[White "djokovic74"]
[Black "Rohde, Michael"]
[BlackFideId "2000172"]
[WhiteElo "2622"]
[BlackElo "2274"]
[Result "1-0"]
[Round "3"]
[TimeControl "180+2"]
[Date "2023.06.20"]
[WhiteClock "0:01:49"]
[BlackClock "0:00:11"]
[Board "109"]

1. e4 {[%clk 0:03:00]}  c5 {[%clk 0:02:59]} 2. Nf3 {[%clk 0:03:01]}  e6 {[%clk 0:02:59]} 3. d4 {[%clk 0:03:01]}  cxd4 {[%clk 0:02:58]} 4. Nxd4 {[%clk 0:03:02]}  a6 {[%clk 0:02:58]} 5. c4 {[%clk 0:03:02]}  Nf6 {[%clk 0:02:54]} 6. Nc3 {[%clk 0:03:03]}  Qc7 {[%clk 0:02:54]} 7. Be2 {[%clk 0:03:03]}  Bb4 {[%clk 0:02:51]} 8. Nc2 {[%clk 0:03:03]}  Bxc3+ {[%clk 0:02:45]} 9. bxc3 {[%clk 0:03:04]}  O-O {[%clk 0:02:40]} 10. Ba3 {[%clk 0:03:02]}  Re8 {[%clk 0:02:35]} 11. Bd6 {[%clk 0:03:00]}  Qc6 {[%clk 0:02:35]} 12. f3 {[%clk 0:02:59]}  e5 {[%clk 0:02:34]} 13. Nb4 {[%clk 0:02:58]}  Qb6 {[%clk 0:02:31]} 14. c5 {[%clk 0:02:58]}  Qa5 {[%clk 0:02:25]} 15. O-O {[%clk 0:02:53]}  b6 {[%clk 0:02:18]} 16. Nd5 {[%clk 0:02:49]}  Nxd5 {[%clk 0:02:03]} 17. Qxd5 {[%clk 0:02:38]}  Nc6 {[%clk 0:02:03]} 18. Bc4 {[%clk 0:02:31]}  Re6 {[%clk 0:02:02]} 19. Qd3 {[%clk 0:02:24]}  Rh6 {[%clk 0:01:45]} 20. Rab1 {[%clk 0:02:20]}  b5 {[%clk 0:01:34]} 21. Bd5 {[%clk 0:02:18]}  Qd8 {[%clk 0:01:32]} 22. f4 {[%clk 0:02:16]}  exf4 {[%clk 0:00:51]} 23. Rxf4 {[%clk 0:02:15]}  Re6 {[%clk 0:00:47]} 24. Rbf1 {[%clk 0:02:01]}  f6 {[%clk 0:00:43]} 25. e5 {[%clk 0:01:53]}  Bb7 {[%clk 0:00:11]} 26. exf6 {[%clk 0:01:49]} 1-0


[Site "https://www.chess.com"]

[Event "Titled Tuesday Blitz June 20 Early 2023"]
[White "LangesNasenhaar"]
[Black "Gubajdullin, Alexei"]
[BlackFideId "4141202"]
[WhiteElo "2467"]
[BlackElo "2279"]
[Result "1/2-1/2"]
[Round "3"]
[TimeControl "180+2"]
[Date "2023.06.20"]
[WhiteClock "0:00:07"]
[BlackClock "0:00:06"]
[Board "110"]

1. d4 {[%clk 0:03:00]}  Nf6 {[%clk 0:02:44]} 2. Nc3 {[%clk 0:03:00]}  d5 {[%clk 0:02:43]} 3. Bf4 {[%clk 0:03:01]}  c6 {[%clk 0:02:41]} 4. e3 {[%clk 0:03:01]}  Bf5 {[%clk 0:02:41]} 5. Nf3 {[%clk 0:03:01]}  h6 {[%clk 0:02:40]} 6. Ne5 {[%clk 0:03:01]}  e6 {[%clk 0:02:40]} 7. g4 {[%clk 0:03:01]}  Bh7 {[%clk 0:02:40]} 8. h4 {[%clk 0:03:01]}  Nfd7 {[%clk 0:02:36]} 9. Bd3 {[%clk 0:02:54]}  Bxd3 {[%clk 0:02:34]} 10. cxd3 {[%clk 0:02:54]}  Nxe5 {[%clk 0:02:33]} 11. dxe5 {[%clk 0:02:49]}  d4 {[%clk 0:02:28]} 12. Ne4 {[%clk 0:02:44]}  Bb4+ {[%clk 0:02:27]} 13. Ke2 {[%clk 0:02:41]}  dxe3 {[%clk 0:02:26]} 14. fxe3 {[%clk 0:02:40]}  Nd7 {[%clk 0:02:21]} 15. g5 {[%clk 0:02:32]}  h5 {[%clk 0:02:03]} 16. Qb3 {[%clk 0:02:07]}  Qb6 {[%clk 0:02:02]} 17. g6 {[%clk 0:02:04]}  O-O-O {[%clk 0:01:51]} 18. gxf7 {[%clk 0:02:04]}  Be7 {[%clk 0:01:29]} 19. Qxe6 {[%clk 0:01:37]}  Qxb2+ {[%clk 0:01:28]} 20. Kf3 {[%clk 0:01:37]}  Qa3 {[%clk 0:01:21]} 21. Qb3 {[%clk 0:01:12]}  Nf8 {[%clk 0:00:59]} 22. Qxa3 {[%clk 0:01:05]}  Bxa3 {[%clk 0:00:59]} 23. d4 {[%clk 0:01:06]}  Ne6 {[%clk 0:00:59]} 24. Ng5 {[%clk 0:00:58]}  Nc7 {[%clk 0:00:53]} 25. e6 {[%clk 0:00:54]}  Be7 {[%clk 0:00:53]} 26. Bxc7 {[%clk 0:00:44]}  Kxc7 {[%clk 0:00:52]} 27. Ne4 {[%clk 0:00:41]}  Rh6 {[%clk 0:00:51]} 28. Rag1 {[%clk 0:00:33]}  Rxe6 {[%clk 0:00:41]} 29. Rxg7 {[%clk 0:00:33]}  Rf8 {[%clk 0:00:39]} 30. Ng5 {[%clk 0:00:23]}  Rf6+ {[%clk 0:00:37]} 31. Ke2 {[%clk 0:00:20]}  Kd7 {[%clk 0:00:33]} 32. Rf1 {[%clk 0:00:20]}  Rxf1 {[%clk 0:00:27]} 33. Kxf1 {[%clk 0:00:20]}  Bf6 {[%clk 0:00:26]} 34. Rh7 {[%clk 0:00:17]}  Ke7 {[%clk 0:00:24]} 35. Rxh5 {[%clk 0:00:12]}  Bxg5 {[%clk 0:00:14]} 36. hxg5 {[%clk 0:00:12]}  Rxf7+ {[%clk 0:00:14]} 37. Ke2 {[%clk 0:00:12]}  Rg7 {[%clk 0:00:13]} 38. Kd3 {[%clk 0:00:11]}  Ke6 {[%clk 0:00:13]} 39. e4 {[%clk 0:00:11]}  b5 {[%clk 0:00:12]} 40. Kc3 {[%clk 0:00:10]}  a5 {[%clk 0:00:12]} 41. a3 {[%clk 0:00:10]}  Rf7 {[%clk 0:00:12]} 42. Rh6+ {[%clk 0:00:07]}  Kd7 {[%clk 0:00:12]} 43. g6 {[%clk 0:00:06]}  Rf3+ {[%clk 0:00:12]} 44. Kd2 {[%clk 0:00:06]}  Rxa3 {[%clk 0:00:12]} 45. Rh7+ {[%clk 0:00:06]}  Ke6 {[%clk 0:00:11]} 46. Ra7 {[%clk 0:00:06]}  a4 {[%clk 0:00:10]} 47. g7 {[%clk 0:00:06]}  Rg3 {[%clk 0:00:10]} 48. Ke2 {[%clk 0:00:04]}  Rg6 {[%clk 0:00:08]} 49. Rc7 {[%clk 0:00:04]}  Kd6 {[%clk 0:00:08]} 50. Rb7 {[%clk 0:00:04]}  a3 {[%clk 0:00:07]} 51. Kd3 {[%clk 0:00:04]}  Rg3+ {[%clk 0:00:07]} 52. Kc2 {[%clk 0:00:05]}  a2 {[%clk 0:00:07]} 53. Ra7 {[%clk 0:00:04]}  Rg2+ {[%clk 0:00:07]} 54. Kb3 {[%clk 0:00:04]}  Rxg7 {[%clk 0:00:06]} 55. Rxa2 {[%clk 0:00:03]}  Rg4 {[%clk 0:00:06]} 56. Re2 {[%clk 0:00:04]}  Rg3+ {[%clk 0:00:06]} 57. Kb4 {[%clk 0:00:04]}  Rd3 {[%clk 0:00:06]} 58. d5 {[%clk 0:00:04]}  cxd5 {[%clk 0:00:04]} 59. exd5 {[%clk 0:00:05]}  Rxd5 {[%clk 0:00:04]} 60. Rh2 {[%clk 0:00:04]}  Kc6 {[%clk 0:00:04]} 61. Rh6+ {[%clk 0:00:04]}  Kb7 {[%clk 0:00:05]} 62. Rh7+ {[%clk 0:00:05]}  Kb6 {[%clk 0:00:05]} 63. Rh6+ {[%clk 0:00:05]}  Kb7 {[%clk 0:00:05]} 64. Rh7+ {[%clk 0:00:06]}  Kc6 {[%clk 0:00:05]} 65. Rh6+ {[%clk 0:00:06]}  Kc7 {[%clk 0:00:05]} 66. Rh7+ {[%clk 0:00:06]}  Kc6 {[%clk 0:00:06]} 67. Rh6+ {[%clk 0:00:07]} 1/2-1/2


[Site "https://www.chess.com"]

[Event "Titled Tuesday Blitz June 20 Early 2023"]
[White "Principe, Gerson"]
[Black "Gomez Barrera, Javiera Belen"]
[WhiteFideId "3804550"]
[BlackFideId "3418723"]
[WhiteElo "2229"]
[BlackElo "2119"]
[Result "1-0"]
[Round "3"]
[TimeControl "180+2"]
[Date "2023.06.20"]
[WhiteClock "0:00:09"]
[BlackClock "0:00:07"]
[Board "114"]

1. Nf3 {[%clk 0:03:00]}  Nf6 {[%clk 0:02:56]} 2. b3 {[%clk 0:02:59]}  d6 {[%clk 0:02:53]} 3. d4 {[%clk 0:02:58]}  g6 {[%clk 0:02:51]} 4. Bb2 {[%clk 0:02:57]}  Bg7 {[%clk 0:02:52]} 5. e3 {[%clk 0:02:57]}  O-O {[%clk 0:02:52]} 6. Be2 {[%clk 0:02:57]}  Re8 {[%clk 0:02:37]} 7. O-O {[%clk 0:02:56]}  a5 {[%clk 0:02:37]} 8. a3 {[%clk 0:02:51]}  b6 {[%clk 0:02:30]} 9. c4 {[%clk 0:02:50]}  Bb7 {[%clk 0:02:30]} 10. Nc3 {[%clk 0:02:50]}  Nbd7 {[%clk 0:02:30]} 11. b4 {[%clk 0:02:50]}  axb4 {[%clk 0:02:27]} 12. axb4 {[%clk 0:02:51]}  e6 {[%clk 0:02:22]} 13. Qb3 {[%clk 0:02:50]}  Qe7 {[%clk 0:02:21]} 14. Rfd1 {[%clk 0:02:35]}  Ne4 {[%clk 0:02:19]} 15. Nxe4 {[%clk 0:02:20]}  Bxe4 {[%clk 0:02:19]} 16. Nd2 {[%clk 0:02:20]}  Bb7 {[%clk 0:02:19]} 17. Bf3 {[%clk 0:02:20]}  Bxf3 {[%clk 0:02:19]} 18. Nxf3 {[%clk 0:02:21]}  Reb8 {[%clk 0:02:14]} 19. b5 {[%clk 0:02:15]}  e5 {[%clk 0:02:09]} 20. Ra6 {[%clk 0:02:11]}  exd4 {[%clk 0:02:09]} 21. exd4 {[%clk 0:01:57]}  Rxa6 {[%clk 0:02:03]} 22. bxa6 {[%clk 0:01:56]}  Ra8 {[%clk 0:02:03]} 23. Ra1 {[%clk 0:01:55]}  Ra7 {[%clk 0:02:02]} 24. h3 {[%clk 0:01:47]}  Nb8 {[%clk 0:01:59]} 25. Qb5 {[%clk 0:01:32]}  Qd7 {[%clk 0:01:58]} 26. Nd2 {[%clk 0:00:55]}  Qc8 {[%clk 0:01:41]} 27. Re1 {[%clk 0:00:53]}  Kf8 {[%clk 0:01:40]} 28. c5 {[%clk 0:00:44]}  bxc5 {[%clk 0:01:04]} 29. dxc5 {[%clk 0:00:42]}  c6 {[%clk 0:00:57]} 30. Bxg7+ {[%clk 0:00:40]}  Kxg7 {[%clk 0:00:58]} 31. Qb2+ {[%clk 0:00:41]}  f6 {[%clk 0:00:49]} 32. Ne4 {[%clk 0:00:26]}  Nd7 {[%clk 0:00:43]} 33. Nxd6 {[%clk 0:00:24]}  Qf8 {[%clk 0:00:44]} 34. Qd4 {[%clk 0:00:18]}  Rxa6 {[%clk 0:00:39]} 35. Ne8+ {[%clk 0:00:18]}  Kh6 {[%clk 0:00:36]} 36. Qxd7 {[%clk 0:00:18]}  Qxc5 {[%clk 0:00:32]} 37. Nxf6 {[%clk 0:00:17]}  Ra7 {[%clk 0:00:24]} 38. Ng4+ {[%clk 0:00:17]}  Kh5 {[%clk 0:00:20]} 39. Qd1 {[%clk 0:00:16]}  Kh4 {[%clk 0:00:18]} 40. Qf3 {[%clk 0:00:13]}  Qd6 {[%clk 0:00:17]} 41. g3+ {[%clk 0:00:12]}  Kxh3 {[%clk 0:00:07]} 42. Ne3 {[%clk 0:00:09]} 1-0


[Site "https://www.chess.com"]